bitfinex/quotes_ETHUSD_20250517
["timestamp","ask_amount","ask_price","bid_price","bid_amount"]
[1747488313345,4.05547895,2465.8,2465.2,0.7907]
[1747488313552,0.01123256,2465.7,2465.3,12.14927133]
[1747488313751,0.01123256,2465.7,2465.3,12.14918711]
[1747488314049,4.06690049,2465.7,2465.3,8.093]
[1747488314255,4.0558221,2465.6,2465.2,0.7907]
[1747488314461,0.01123256,2465.5,2465.3,8.093]
[1747488314657,0.01123256,2465.5,2465.3,4.05628615]
[1747488314862,0.01123256,2465.5,2465.4,8.094]
[1747488315046,0.01123256,2465.5,2465.4,12.15013693]
[1747488315663,0.01123256,2465.5,2465.4,8.094]
[1747488315977,0.01123256,2465.5,2465.4,12.15013693]
[1747488317168,0.01123256,2465.5,2465.4,15.46134775]
[1747488317892,0.01123256,2465.5,2465.4,23.46134775]
[1747488319369,0.01123256,2465.5,2465.4,24.84184775]
[1747488319908,0.01123256,2465.5,2465.4,32.38784775]
[1747488320108,0.01123256,2465.5,2465.4,16.095]
[1747488320309,0.01123256,2465.5,2465.4,20.15113693]
[1747488320610,0.01123256,2465.5,2465.3,4.05621864]
[1747488320811,0.01123256,2465.5,2465.4,8.095]
[1747488322188,0.01123256,2465.5,2465.4,12.15113693]
[1747488322392,0.01123256,2465.5,2465.4,14.57187974]
[1747488323815,0.01123256,2465.5,2465.2,12.05641019]
[1747488324013,0.01123256,2465.5,2465.4,12.15113693]
[1747488324510,0.01123256,2465.5,2465.4,13.47863693]
[1747488324716,0.01123256,2465.5,2465.4,21.56263693]
[1747488325015,0.01123256,2465.5,2465.4,21.56063693]
[1747488325216,0.01123256,2465.5,2465.4,24.92232876]
[1747488326111,0.01123256,2465.5,2465.4,32.92232876]
[1747488326920,0.01123256,2465.5,2465.4,16.19532876]
[1747488327082,0.01123256,2465.5,2465.4,21.00763693]
[1747488330326,0.01123256,2465.5,2465.4,29.00763693]
[1747488331014,0.01123256,2465.5,2465.4,12.83363693]
[1747488331219,0.01123256,2465.5,2465.4,20.89663693]
[1747488334320,0.01123256,2465.5,2465.4,12.83363693]
[1747488334527,0.01123256,2465.5,2465.4,28.93463693]
[1747488334731,0.01123256,2465.5,2465.4,8.063]
[1747488335324,0.01123256,2465.5,2465.4,12.11913693]
[1747488337736,0.01123256,2465.5,2465.4,21.43673693]
[1747488340629,0.01123256,2465.5,2465.4,28.90073693]
[1747488341263,0.01123256,2465.5,2465.4,12.82373693]
[1747488341547,0.01123256,2465.5,2465.4,28.89773693]
[1747488341740,0.01123256,2465.5,2465.4,16.11913179]
[1747488341951,0.01123256,2465.5,2465.4,32.19013179]
[1747488343225,5.25979908,2466.5,2465.6,0.7696]
[1747488343416,4.05467508,2466.3,2465.9,8.0]
[1747488343618,4.05452248,2466.4,2465.7,16.092]
[1747488343817,0.52598578,2466.3,2465.7,16.092]
[1747488344012,4.58064255,2466.3,2465.8,4.05545474]
[1747488344448,4.58064255,2466.3,2465.9,8.062]
[1747488345559,0.52598578,2466.3,2465.9,12.11729828]
[1747488345733,4.05455679,2466.4,2465.9,12.11729828]
[1747488345938,4.05468103,2466.3,2465.9,8.062]
[1747488346260,4.87518169,2466.5,2466.0,4.0551457]
[1747488346624,4.05455272,2466.4,2465.9,12.11722478]
[1747488346963,4.87519555,2466.5,2466.0,8.062]
[1747488347256,0.8208,2466.5,2466.0,8.062]
[1747488347461,4.05449406,2466.4,2466.0,8.062]
[1747488347664,4.05465677,2466.3,2466.1,8.062]
[1747488347851,4.05482118,2466.2,2466.1,8.062]
[1747488348618,4.05449406,2466.4,2466.1,8.062]
[1747488348860,4.05474559,2466.3,2466.1,8.062]
[1747488349065,0.7929,2466.2,2466.0,8.062]
[1747488349261,4.05500428,2466.1,2465.7,8.0]
[1747488349452,4.84777215,2466.2,2465.8,8.062]
[1747488350186,4.05466789,2466.3,2465.8,8.8347]
[1747488350384,4.05458409,2466.4,2465.9,6.14422322]
[1747488350895,0.7929,2466.5,2465.7,8.0]
[1747488351177,4.84800898,2466.1,2465.8,8.062]
[1747488351574,0.7929,2466.1,2465.8,12.11746872]
[1747488351945,0.7929,2466.1,2465.9,4.05530593]
[1747488352272,4.84755436,2466.4,2465.8,12.11739325]
[1747488352471,4.84755436,2466.4,2465.9,4.05524592]
[1747488352646,4.84755436,2466.4,2465.9,4.05522681]
[1747488352969,0.7929,2466.4,2466.0,4.05514777]
[1747488353149,4.8474187,2466.4,2465.9,4.0552086]
[1747488356602,0.7929,2466.4,2465.4,0.7631]
[1747488356806,4.054982,2466.2,2465.5,12.11784202]
[1747488357004,4.05506415,2466.1,2465.7,4.05562553]
[1747488357307,4.05506415,2466.1,2465.7,4.05561727]
[1747488357676,4.05490897,2466.2,2465.7,4.05561727]
[1747488357874,4.05499964,2466.1,2465.7,4.05561727]
[1747488358071,4.05483264,2466.2,2465.7,1.61735261]
[1747488358276,4.05483264,2466.2,2465.7,5.67287555]
[1747488359292,4.05483264,2466.2,2465.8,4.05547052]
[1747488359495,4.05472878,2466.3,2465.8,4.05547052]
[1747488360174,4.05483224,2466.2,2465.8,4.05547052]
[1747488360992,4.05469042,2466.3,2465.8,4.05547052]
[1747488361198,0.7929,2466.4,2466.0,4.05506025]
[1747488361386,0.7929,2466.4,2466.1,8.026]
[1747488361584,0.7929,2466.4,2466.1,12.08093068]
[1747488361898,0.7929,2466.4,2466.1,8.026]
[1747488362085,0.38478656,2466.6,2466.2,4.09536196]
[1747488362276,0.38478656,2466.6,2466.1,13.77596184]
[1747488362600,0.7723,2466.7,2466.3,4.05452661]
[1747488362797,0.7723,2466.9,2466.5,4.054287]
[1747488363010,0.7723,2466.9,2466.6,8.026]
[1747488363196,4.53240739,2467.0,2466.6,8.026]
[1747488363365,0.47880046,2467.0,2466.6,8.026]
[1747488363564,0.47880046,2467.0,2466.8,4.05374298]
[1747488363761,0.47880046,2467.0,2466.9,4.05367059]
[1747488364199,12.84857925,2467.4,2467.0,4.0534896]
[1747488364405,6.82144527,2467.4,2467.1,8.025]
[1747488365292,2.76857925,2467.4,2467.1,8.025]
[1747488365486,2.76857925,2467.4,2467.1,12.07832337]
[1747488365487,1.99957925,2467.4,2467.1,12.07832337]
[1747488365681,1.99957925,2467.4,2467.1,8.025]
[1747488365999,4.05310296,2467.3,2467.2,8.024]
[1747488366372,0.769,2467.1,2467.0,8.024]
[1747488366568,1.99957925,2467.4,2467.0,8.024]
[1747488366569,6.82146927,2467.4,2467.0,8.024]
[1747488366897,6.82144254,2467.4,2467.0,8.024]
[1747488367080,4.05301341,2467.3,2467.0,8.024]
[1747488368207,4.05321344,2467.2,2466.7,4.05385056]
[1747488368395,4.05321344,2467.2,2467.1,8.024]
[1747488368598,4.05303337,2467.3,2467.1,8.024]
[1747488368793,4.05317769,2467.2,2467.1,8.024]
[1747488369881,4.05342729,2467.1,2466.7,8.0]
[1747488370217,0.8032,2466.9,2466.3,18.2593]
[1747488370398,4.85690608,2466.9,2466.5,8.007]
[1747488370592,4.0538705,2466.8,2466.5,8.007]
[1747488370804,4.85692364,2466.9,2466.5,8.007]
[1747488371732,0.8032,2466.9,2466.5,12.06122556]
[1747488372022,4.0536142,2467.0,2466.6,2.00852256]
[1747488372315,4.0536142,2467.0,2466.6,2.00406673]
[1747488372489,4.05370142,2466.9,2466.5,8.007]
[1747488373322,4.05370142,2466.9,2466.5,12.06131257]
[1747488373886,0.8032,2467.1,2466.7,4.05389694]
[1747488374720,4.85655296,2467.1,2466.7,4.05389694]
[1747488374898,4.85665317,2467.1,2466.5,8.007]
[1747488375100,4.05350628,2467.0,2466.6,12.07712654]
[1747488375298,0.8032,2467.1,2466.6,12.07712654]
[1747488375539,4.85662707,2467.1,2466.6,12.07712654]
[1747488375702,4.85666764,2467.1,2466.7,8.023]
[1747488377722,4.05374613,2466.9,2466.8,8.023]
[1747488378096,4.05356944,2467.0,2466.8,8.023]
[1747488378320,4.05367059,2466.9,2466.8,8.023]
[1747488380935,4.05367059,2466.9,2466.4,4.05440433]
[1747488381127,4.05409045,2466.7,2466.6,8.023]
[1747488381341,4.05391349,2466.8,2466.6,8.023]
[1747488381623,4.05399927,2466.7,2466.6,8.023]
[1747488381805,4.05393218,2466.8,2466.5,8.023]
[1747488382529,4.05400144,2466.7,2466.5,8.023]
[1747488383042,4.05393154,2466.8,2466.5,8.023]
[1747488383719,5.56898743,2467.1,2466.5,8.023]
[1747488383925,4.05416362,2466.6,2466.3,17.509]
[1747488384112,4.05416362,2466.6,2466.4,8.023]
[1747488384310,4.05416362,2466.6,2466.3,17.509]
[1747488384510,4.05416362,2466.6,2466.5,8.023]
[1747488384765,4.81689191,2466.7,2466.5,8.023]
[1747488385510,0.7628,2466.7,2466.3,17.509]
[1747488385720,4.81688772,2466.7,2466.4,8.023]
[1747488386447,0.7628,2466.7,2466.4,8.023]
[1747488387515,4.05432799,2466.5,2466.4,8.023]
[1747488392057,4.05449237,2466.4,2466.3,25.463]
[1747488393851,4.05449237,2466.4,2466.3,17.509]
[1747488394146,4.05465677,2466.3,2466.2,7.955]
[1747488394318,4.05454878,2466.4,2466.1,7.955]
[1747488394520,4.05474617,2466.3,2466.1,7.955]
[1747488394741,4.05482118,2466.2,2466.1,7.955]
[1747488394945,4.05452709,2466.4,2466.1,7.955]
[1747488395141,4.05474452,2466.3,2465.8,4.86795337]
[1747488395372,4.05419177,2466.6,2465.8,3.45555155]
[1747488395587,4.05482877,2466.2,2465.9,7.955]
[1747488395894,4.05475056,2466.3,2465.9,7.955]
[1747488396497,4.05508319,2466.1,2465.9,7.955]
[1747488396986,4.05451112,2466.4,2465.9,7.955]
[1747488397170,4.05456243,2466.4,2465.9,14.08794202]
[1747488397576,4.05451439,2466.4,2465.9,14.08793132]
[1747488398351,4.0542281,2466.6,2466.0,4.8057177]
[1747488398548,4.05432799,2466.5,2466.0,4.8057177]
[1747488398893,10.08,2466.9,2466.5,4.05424962]
[1747488399201,14.91244072,2467.0,2466.5,12.75984962]
[1747488399487,4.05355128,2467.0,2466.5,12.75983812]
[1747488399990,4.05390596,2466.8,2466.5,8.7056]
[1747488400149,4.053762,2466.9,2466.5,8.7056]
[1747488400349,4.05385091,2466.8,2466.5,8.7056]
[1747488401092,12.00839493,2467.1,2466.5,12.75992448]
[1747488401292,4.05365834,2467.0,2466.5,12.75992448]
[1747488401594,4.05365834,2467.0,2466.5,14.44137585]
[1747488401902,0.7789,2467.2,2466.5,14.44137585]
[1747488401903,4.83218572,2467.2,2466.7,4.05391978]
[1747488402080,4.05317769,2467.2,2466.7,4.05391978]
[1747488402378,0.7789,2467.3,2466.8,7.955]
[1747488402744,4.05367059,2466.9,2466.8,7.955]
[1747488408010,4.05387098,2466.8,2466.5,2.43205137]
[1747488408208,4.05387098,2466.8,2466.6,7.954]
[1747488408418,4.05391581,2466.8,2466.6,7.954]
[1747488408589,4.05374663,2466.9,2466.6,7.954]
[1747488408919,4.0538582,2466.8,2466.6,7.954]
[1747488409084,4.05375402,2466.9,2466.6,7.954]
[1747488409417,4.05355107,2467.0,2466.6,7.954]
[1747488409607,4.05355107,2467.0,2466.6,10.02520915]
[1747488412124,4.05359077,2467.0,2466.6,7.954]
[1747488413119,0.7789,2467.3,2466.7,4.05399927]
[1747488413420,14.13294555,2467.4,2466.8,4.05383492]
[1747488413600,14.13294555,2467.4,2466.9,4.05354334]
[1747488414613,4.05305384,2467.3,2466.8,4.05374129]
[1747488414811,4.05305384,2467.3,2466.7,0.7926]
[1747488414812,4.05323669,2467.2,2466.7,0.7926]
[1747488415135,4.05334318,2467.1,2466.8,7.954]
[1747488415300,4.84584318,2467.1,2466.8,7.954]
[1747488415492,4.05358282,2467.0,2466.8,7.954]
[1747488415893,4.05358282,2467.0,2466.5,18.2986]
[1747488416106,4.05373686,2466.9,2466.6,7.954]
[1747488416319,4.05381463,2466.9,2466.6,7.954]
[1747488416521,4.05360109,2467.0,2466.6,7.954]
[1747488416710,4.05368029,2466.9,2466.5,17.506]
[1747488416893,4.05380645,2466.9,2466.6,7.954]
[1747488417097,0.7925,2467.1,2466.6,7.954]
[1747488417098,4.05384042,2466.8,2466.6,7.954]
[1747488417428,4.05374784,2466.9,2466.6,7.954]
[1747488418130,4.05374784,2466.9,2466.5,17.506]
[1747488418424,4.05374784,2466.9,2466.6,7.954]
[1747488418925,0.88998255,2466.9,2466.6,7.954]
[1747488419093,4.0539287,2466.8,2466.6,7.954]
[1747488419493,4.05350628,2467.0,2466.5,17.506]
[1747488419494,4.05416362,2466.6,2466.5,17.506]
[1747488419712,4.84597136,2466.7,2466.5,17.506]
[1747488419926,4.84597136,2466.7,2466.4,7.954]
[1747488420323,4.05407136,2466.7,2466.4,7.954]
[1747488420529,4.05390721,2466.8,2466.4,7.954]
[1747488420728,7.95,2467.2,2466.5,0.7586]
[1747488420729,4.05317769,2467.2,2466.5,0.7586]
[1747488420893,4.05350587,2467.1,2466.5,4.81279487]
[1747488421097,10.08,2467.4,2466.8,4.05383299]
[1747488421295,4.05277988,2467.5,2467.0,4.81200675]
[1747488421608,4.05285626,2467.4,2467.0,4.81200675]
[1747488421804,4.84452777,2467.6,2467.1,4.05323109]
[1747488422017,4.05262777,2467.6,2467.0,6.49397418]
[1747488422216,4.05285318,2467.4,2467.0,0.7586]
[1747488422619,4.05284971,2467.4,2467.0,0.7586]
[1747488422806,4.05277029,2467.5,2467.0,4.81208731]
[1747488423323,4.05287657,2467.4,2467.0,0.7586]
[1747488423715,4.05287657,2467.4,2467.0,4.81208971]
[1747488423917,4.05306673,2467.3,2467.0,0.7586]
[1747488424125,4.05293833,2467.4,2467.0,0.7586]
[1747488424732,4.05279194,2467.5,2467.0,0.7586]
[1747488424932,4.05301056,2467.4,2467.0,0.7586]
[1747488426134,4.05303618,2467.3,2467.0,0.7586]
[1747488426340,4.05303618,2467.3,2467.0,2.03523625]
[1747488426935,4.05289146,2467.4,2467.0,2.03523625]
[1747488427099,4.05289146,2467.4,2467.1,7.949]
[1747488427303,4.05303135,2467.3,2467.1,7.949]
[1747488427997,4.05307429,2467.3,2467.1,7.949]
[1747488429106,4.05293077,2467.4,2467.1,7.949]
[1747488429307,4.05304668,2467.3,2467.1,7.949]
[1747488430238,4.05292083,2467.4,2467.1,7.949]
[1747488430403,4.05262013,2467.6,2467.1,12.00231036]
[1747488430605,10.08,2467.7,2467.1,13.27843426]
[1747488430807,4.05275268,2467.5,2467.1,9.2251239]
[1747488431135,4.0531252,2467.3,2467.1,1.2761239]
[1747488431336,10.08,2467.7,2467.2,7.948]
[1747488431634,10.08,2467.7,2467.3,0.8244]
[1747488431799,10.08,2467.7,2467.3,4.87733788]
[1747488432006,10.08,2467.7,2467.3,0.8244]
[1747488432204,4.05265147,2467.6,2467.4,7.948]
[1747488432427,4.0526849,2467.5,2467.4,7.948]
[1747488432739,14.13243205,2467.7,2467.4,8.82524]
[1747488433046,4.05254779,2467.6,2467.4,8.82524]
[1747488433519,4.05265491,2467.6,2467.5,7.948]
[1747488434507,4.05244158,2467.7,2467.5,7.948]
[1747488434707,4.05252066,2467.6,2467.3,0.8244]
[1747488435040,4.05244158,2467.7,2467.4,7.948]
[1747488435041,4.05245005,2467.7,2467.4,7.948]
[1747488436541,4.05259503,2467.6,2467.5,7.948]
[1747488437919,4.05231673,2467.8,2467.5,7.948]
[1747488438436,4.05279039,2467.5,2467.3,0.8244]
[1747488438634,4.05279039,2467.5,2467.4,7.948]
[1747488439914,4.05260798,2467.6,2467.4,7.948]
[1747488441442,4.05224617,2467.8,2467.4,7.948]
[1747488441443,4.05240679,2467.7,2467.4,7.948]
[1747488441641,4.05253801,2467.6,2467.4,7.948]
[1747488442025,4.05228521,2467.8,2467.4,7.948]
[1747488442232,4.05238657,2467.7,2467.4,7.948]
[1747488443663,0.81046718,2467.7,2467.4,7.948]
[1747488443949,4.0526849,2467.5,2467.4,7.948]
[1747488444522,4.05264039,2467.6,2467.4,7.948]
[1747488444952,4.05242802,2467.7,2467.4,7.948]
[1747488445140,4.05230542,2467.8,2467.4,7.948]
[1747488445356,4.05236852,2467.7,2467.4,7.948]
[1747488446141,4.05224687,2467.8,2467.5,0.7809]
[1747488446675,4.05209946,2467.9,2467.5,0.7809]
[1747488446972,4.05220835,2467.8,2467.5,0.7809]
[1747488447579,4.05196102,2468.0,2467.5,4.83352429]
[1747488447780,10.8368,2468.2,2467.5,4.83352429]
[1747488447991,4.05204631,2467.9,2467.5,4.83352429]
[1747488448449,4.05179682,2468.1,2467.6,4.05247124]
[1747488448651,4.05126436,2468.4,2467.9,0.7628]
[1747488448851,4.05155304,2468.2,2468.0,7.947]
[1747488449053,4.05145474,2468.3,2468.0,7.947]
[1747488449574,4.05153976,2468.2,2468.0,7.947]
[1747488449978,4.05146107,2468.3,2468.0,7.947]
[1747488450174,0.8217,2468.5,2468.0,7.947]
[1747488450347,4.05150643,2468.3,2468.0,7.947]
[1747488450548,4.0515388,2468.2,2468.0,7.947]
[1747488450856,4.05146738,2468.3,2468.0,7.947]
[1747488451043,4.05154519,2468.2,2468.0,7.947]
[1747488452270,4.05109701,2468.5,2468.0,7.947]
[1747488452453,4.05127533,2468.4,2468.0,7.947]
[1747488453076,10.08,2468.6,2468.1,4.05160541]
[1747488453258,14.13088008,2468.6,2468.0,13.27496833]
[1747488453582,4.05118507,2468.5,2468.0,13.27496833]
[1747488455082,14.13093992,2468.6,2468.0,13.27499692]
[1747488455265,4.05121711,2468.4,2468.0,9.22317467]
[1747488455477,0.7957,2468.9,2468.2,4.05144516]
[1747488455792,4.05089287,2468.6,2468.2,4.05144516]
[1747488455992,4.05076245,2468.7,2468.2,4.05144516]
[1747488456893,4.05057329,2468.8,2468.3,4.85619991]
[1747488457079,4.05057329,2468.8,2468.3,6.76671187]
[1747488458191,4.05073857,2468.7,2468.3,6.76671187]
[1747488458367,4.05058669,2468.8,2468.3,6.76671187]
[1747488458693,4.05041693,2468.9,2468.3,8.7429]
[1747488458694,4.05112406,2468.5,2468.3,8.7429]
[1747488459225,4.05022276,2469.0,2468.3,8.7429]
[1747488459505,4.05102029,2468.6,2468.3,8.7429]
[1747488460800,4.05107477,2468.5,2468.3,8.7429]
[1747488461497,4.05039217,2468.9,2468.3,8.7429]
[1747488461798,4.05120725,2468.4,2468.3,0.8049]
[1747488461999,4.05120725,2468.4,2468.3,7.937]
[1747488462682,4.05094825,2468.6,2468.3,7.937]
[1747488463095,4.05107198,2468.5,2468.3,7.937]
[1747488463271,4.05095275,2468.6,2468.3,7.937]
[1747488463470,4.05095275,2468.6,2468.3,9.21635027]
[1747488464080,4.05072241,2468.7,2468.4,0.8049]
[1747488464481,4.05061077,2468.8,2468.4,0.8049]
[1747488464975,4.05073135,2468.7,2468.4,0.8049]
[1747488465604,4.05081086,2468.7,2468.5,7.936]
[1747488467811,4.05081086,2468.7,2468.5,8.85753503]
[1747488468381,4.05064766,2468.8,2468.5,8.85753503]
[1747488468911,4.05071724,2468.7,2468.5,8.85753503]
[1747488469211,4.05087904,2468.6,2468.5,0.92153503]
[1747488469382,4.05087904,2468.6,2468.5,7.936]
[1747488469924,4.05075017,2468.7,2468.5,7.936]
[1747488470430,4.05064278,2468.8,2468.5,7.936]
[1747488471298,4.05071808,2468.7,2468.5,7.936]
[1747488472621,4.05064084,2468.8,2468.5,7.936]
[1747488473011,4.05071524,2468.7,2468.5,7.936]
[1747488473207,4.05048673,2468.9,2468.5,7.936]
[1747488473412,4.05040642,2468.9,2468.6,0.8082]
[1747488474807,4.05071495,2468.7,2468.5,9.26266313]
[1747488475541,13.00301392,2469.1,2468.5,9.26266313]
[1747488475747,4.05068222,2468.8,2468.5,7.936]
[1747488476543,4.05077336,2468.7,2468.5,7.936]
[1747488477053,4.05064416,2468.8,2468.5,7.936]
[1747488477417,4.05046651,2468.9,2468.5,7.936]
[1747488477649,4.05055762,2468.8,2468.5,7.936]
[1747488479052,4.05047468,2468.9,2468.5,7.936]
[1747488479541,4.05047468,2468.9,2468.4,4.05113103]
[1747488479741,4.05047468,2468.9,2468.5,7.936]
[1747488480414,4.05027656,2469.0,2468.5,7.936]
[1747488480617,4.05039208,2468.9,2468.5,11.98696276]
[1747488481018,4.05034858,2469.0,2468.5,11.98696276]
[1747488481450,4.05044037,2468.9,2468.5,7.936]
[1747488481652,4.05044037,2468.9,2468.5,9.85049774]
[1747488482457,8.95290061,2469.1,2468.5,1.91449774]
[1747488482658,4.05068709,2468.8,2468.5,7.925]
[1747488483460,4.0504829,2468.9,2468.5,7.925]
[1747488486468,4.05120725,2468.4,2468.3,0.8082]
[1747488486645,4.05080605,2468.7,2468.3,0.8082]
[1747488486964,4.05098044,2468.6,2468.3,0.8082]
[1747488490372,4.05088032,2468.6,2468.3,0.8082]
[1747488490666,4.05079296,2468.7,2468.3,0.8082]
[1747488490869,4.05093171,2468.6,2468.3,0.8082]
[1747488491871,4.05059484,2468.8,2468.3,0.8082]
[1747488491872,4.05078001,2468.7,2468.3,0.8082]
[1747488492180,4.05082272,2468.7,2468.3,0.8082]
[1747488492350,4.05082272,2468.7,2468.3,2.08667226]
[1747488492780,4.05062399,2468.8,2468.3,6.13800225]
[1747488493075,4.05062399,2468.8,2468.3,6.13791929]
[1747488493383,4.05077898,2468.7,2468.3,2.08667226]
[1747488493547,4.05077898,2468.7,2468.3,6.13803857]
[1747488493747,4.05077898,2468.7,2468.4,0.61380386]
[1747488495188,4.05064585,2468.8,2468.4,0.61380386]
[1747488496249,4.05064585,2468.8,2468.5,7.925]
[1747488497160,4.05044274,2468.9,2468.5,7.925]
[1747488497376,4.05044274,2468.9,2468.6,0.7749]
[1747488498655,4.05044274,2468.9,2468.6,1.39543903]
[1747488499192,13.00312365,2469.0,2468.6,1.39543903]
[1747488499193,8.95290061,2469.0,2468.6,1.39543903]
[1747488499363,8.95290061,2469.0,2468.7,4.05062123]
[1747488499786,4.05012433,2469.1,2468.7,4.05069154]
[1747488499991,4.0499468,2469.2,2468.7,4.05069154]
[1747488500159,7.917,2469.4,2468.8,0.94969878]
[1747488500355,4.04982751,2469.3,2468.9,0.8313]
[1747488500584,4.04982751,2469.3,2468.9,4.88168184]
[1747488500995,4.04966233,2469.4,2468.9,4.88168184]
[1747488501362,4.04968599,2469.4,2469.0,7.925]
[1747488502311,4.04963867,2469.4,2469.0,7.925]
[1747488502606,4.04963867,2469.4,2469.1,0.8313]
[1747488503774,4.04957596,2469.4,2469.1,0.8313]
[1747488504095,4.05005872,2469.1,2469.0,1.19753818]
[1747488504397,4.0498573,2469.3,2469.0,1.19753818]
[1747488504398,8.95290061,2469.5,2469.0,7.925]
[1747488504566,8.95290061,2469.5,2469.2,0.7641]
[1747488504766,13.00230613,2469.5,2469.2,0.7641]
[1747488505395,4.04963693,2469.4,2469.2,0.7641]
[1747488505587,4.04963693,2469.4,2469.2,8.6881]
[1747488507313,4.04973069,2469.3,2469.2,7.924]
[1747488507511,4.04973069,2469.3,2469.1,0.7925]
[1747488507675,4.04998639,2469.2,2468.9,0.7641]
[1747488507875,4.04998639,2469.2,2469.0,0.86881]
[1747488508218,4.05005872,2469.1,2469.0,0.86881]
[1747488508416,4.05038467,2469.0,2468.8,7.924]
[1747488508577,4.05045787,2468.9,2468.8,7.924]
[1747488510004,4.05055947,2468.8,2468.6,7.924]
[1747488510530,4.05047331,2468.9,2468.6,7.924]
[1747488510705,4.05047331,2468.9,2468.6,9.25930682]
[1747488511093,4.0502707,2469.0,2468.6,9.25930682]
[1747488512815,4.04982559,2469.3,2468.8,4.05047275]
[1747488513003,4.04990557,2469.2,2468.8,4.05047275]
[1747488513204,20.91355915,2469.4,2468.8,4.05047275]
[1747488513205,20.91355915,2469.4,2468.9,4.05027647]
[1747488513498,4.04977016,2469.3,2468.9,0.88648492]
[1747488514413,4.04993516,2469.2,2468.9,0.88648492]
[1747488515012,4.04980732,2469.3,2469.0,7.911]
[1747488515986,4.04989716,2469.2,2469.0,7.911]
[1747488516216,16.86390061,2469.4,2469.0,7.911]
[1747488516406,4.05005872,2469.1,2469.0,7.911]
[1747488519121,4.05005872,2469.1,2468.8,7.91]
[1747488519416,4.0503064,2469.0,2468.8,9.31601984]
[1747488519623,4.0503064,2469.0,2468.9,7.91]
[1747488520930,4.05014828,2469.1,2468.9,7.91]
[1747488521548,4.04992709,2469.2,2468.9,7.91]
[1747488521549,4.05022276,2469.0,2468.9,7.91]
[1747488522643,4.05022276,2469.0,2468.7,8.6741]
[1747488522848,4.0500725,2469.1,2468.7,8.6741]
[1747488523003,4.05035621,2469.0,2468.7,8.6741]
[1747488523203,4.05035621,2469.0,2468.7,10.08013413]
[1747488523847,4.05038697,2468.9,2468.7,10.08013413]
[1747488524845,0.8298,2469.2,2468.7,10.08013413]
[1747488525012,0.8298,2469.2,2468.7,7.911]
[1747488525530,4.05005872,2469.1,2468.7,7.911]
[1747488525839,4.05055087,2468.8,2468.7,7.911]
[1747488526270,4.05055087,2468.8,2468.5,0.809]
[1747488526453,4.05055087,2468.8,2468.6,7.911]
[1747488530488,4.05055087,2468.8,2468.6,9.24949692]
[1747488532672,4.0504552,2468.9,2468.6,9.24949692]
[1747488532867,0.8298,2469.2,2468.6,9.24949692]
[1747488533079,4.05052366,2468.9,2468.6,7.911]
[1747488533851,4.05055187,2468.8,2468.6,7.911]
[1747488536182,4.05129225,2468.4,2468.2,0.7987]
[1747488537208,4.05113065,2468.5,2468.2,0.7987]
[1747488537377,4.05113065,2468.5,2468.2,1.38111246]
[1747488537811,4.05125316,2468.4,2468.2,1.38111246]
[1747488538108,4.0511117,2468.5,2468.2,1.38111246]
[1747488538682,4.05121129,2468.4,2468.2,1.38111246]
[1747488538869,4.05121129,2468.4,2468.2,0.58241246]
[1747488539287,4.05110201,2468.5,2468.2,0.58241246]
[1747488539490,4.05100834,2468.6,2468.2,0.58241246]
[1747488540224,4.05105429,2468.5,2468.2,0.58241246]
[1747488540710,4.0504824,2468.9,2468.4,0.7987]
[1747488540876,4.05051972,2468.9,2468.4,4.84989249]
[1747488541077,12.75807363,2469.0,2468.4,4.84989249]
[1747488541284,11.94910696,2469.1,2468.5,4.05102558]
[1747488541521,4.05025983,2469.0,2468.6,12.76150037]
[1747488541724,4.05009225,2469.1,2468.7,1.27615004]
[1747488541887,4.05009225,2469.1,2468.6,0.7987]
[1747488541888,4.05061476,2468.8,2468.6,0.7987]
[1747488542081,4.05061476,2468.8,2468.6,8.7107]
[1747488542713,4.05061476,2468.8,2468.5,7.898]
[1747488543028,4.05047499,2468.9,2468.5,7.898]
[1747488544583,8.7058,2469.3,2468.5,7.898]
[1747488544928,4.05040248,2468.9,2468.5,11.94900665]
[1747488545127,4.05040248,2468.9,2468.5,7.898]
[1747488546629,4.05040248,2468.9,2468.5,11.94904256]
[1747488546826,4.0504808,2468.9,2468.5,7.898]
[1747488547026,4.05063174,2468.8,2468.4,0.7987]
[1747488547195,4.05063174,2468.8,2468.6,7.897]
[1747488547800,4.05056296,2468.8,2468.6,7.897]
[1747488548295,4.05064314,2468.8,2468.6,7.897]
[1747488549431,4.05064314,2468.8,2468.4,1.46739268]
[1747488549732,4.05064314,2468.8,2468.5,7.897]
[1747488550233,6.02126502,2469.2,2468.5,10.15340766]
[1747488550436,4.05048177,2468.9,2468.5,7.897]
[1747488550601,4.05048177,2468.9,2468.4,4.84987528]
[1747488550933,4.05048177,2468.9,2468.5,7.897]
[1747488551597,4.05055124,2468.8,2468.5,7.897]
[1747488551998,1.97136057,2469.2,2468.5,11.94800804]
[1747488552535,4.05045762,2468.9,2468.5,11.94800804]
[1747488553244,4.05045762,2468.9,2468.5,7.897]
[1747488553865,4.0506091,2468.8,2468.5,7.897]
[1747488554013,0.8197,2468.8,2468.5,7.897]
[1747488554209,4.05107887,2468.5,2468.3,7.897]
[1747488554603,4.0509379,2468.6,2468.3,7.897]
[1747488555338,4.05083625,2468.7,2468.3,9.10583929]
[1747488555644,4.05089067,2468.6,2468.3,9.10583929]
[1747488555842,4.05089067,2468.6,2468.3,7.897]
[1747488556844,4.05083439,2468.7,2468.3,7.897]
[1747488557760,4.05088737,2468.6,2468.3,7.897]
[1747488558919,4.05080071,2468.7,2468.3,7.897]
[1747488560463,4.05080071,2468.7,2468.3,11.94834793]
[1747488560757,4.05080071,2468.7,2468.4,1.676148]
[1747488566367,4.05022276,2469.0,2468.4,1.676148]
[1747488566579,0.7599,2468.7,2468.3,7.898]
[1747488566867,4.05116573,2468.5,2468.3,7.898]
[1747488568879,4.05113121,2468.5,2468.3,7.898]
[1747488570357,4.05113121,2468.5,2468.3,8.76396]
[1747488571854,4.05096746,2468.6,2468.3,8.76396]
[1747488572467,4.05108208,2468.5,2468.3,0.86596]
[1747488572839,4.05078991,2468.7,2468.3,0.86596]